[Event "Titled Tuesday Blitz August 1 Early 2023"]
[White "Kayis, Gulcan Sena"]
[Black "Lana Rodriguez, David"]
[WhiteFideId "34553045"]
[BlackFideId "2270803"]
[WhiteElo "2455"]
[BlackElo "2583"]
[Result "0-1"]
[Round "6"]
[TimeControl "180+1"]
[Date "2023.08.01"]
[WhiteClock "0:00:13"]
[BlackClock "0:00:34"]
[Board "111"]

1. e4 {[%clk 0:03:00]}  c5 {[%clk 0:03:00]} 2. c3 {[%clk 0:03:00]}  Nc6 {[%clk 0:03:00]} 3. Nf3 {[%clk 0:02:55]}  d5 {[%clk 0:03:00]} 4. exd5 {[%clk 0:02:55]}  Qxd5 {[%clk 0:03:01]} 5. d4 {[%clk 0:02:55]}  Bg4 {[%clk 0:03:01]} 6. Be2 {[%clk 0:02:54]}  e6 {[%clk 0:03:01]} 7. O-O {[%clk 0:02:53]}  Nf6 {[%clk 0:02:58]} 8. h3 {[%clk 0:02:53]}  Bh5 {[%clk 0:02:54]} 9. c4 {[%clk 0:02:53]}  Qd8 {[%clk 0:02:52]} 10. dxc5 {[%clk 0:02:53]}  Bxc5 {[%clk 0:02:51]} 11. Nc3 {[%clk 0:02:53]}  O-O {[%clk 0:02:50]} 12. a3 {[%clk 0:02:52]}  Qe7 {[%clk 0:02:46]} 13. b4 {[%clk 0:02:52]}  Bb6 {[%clk 0:02:45]} 14. Bb2 {[%clk 0:02:52]}  Rfd8 {[%clk 0:02:44]} 15. Qa4 {[%clk 0:02:50]}  Nd4 {[%clk 0:02:39]} 16. Nxd4 {[%clk 0:02:49]}  Bxd4 {[%clk 0:02:40]} 17. Bxh5 {[%clk 0:02:48]}  Nxh5 {[%clk 0:02:41]} 18. Rad1 {[%clk 0:02:43]}  Nf4 {[%clk 0:02:35]} 19. Kh1 {[%clk 0:02:43]}  Qg5 {[%clk 0:02:30]} 20. g3 {[%clk 0:02:26]}  Nxh3 {[%clk 0:02:10]} 21. Qc2 {[%clk 0:02:23]}  Qh5 {[%clk 0:02:02]} 22. Kg2 {[%clk 0:02:21]}  Ng5 {[%clk 0:02:02]} 23. Rd3 {[%clk 0:01:23]}  Qh3+ {[%clk 0:01:25]} 24. Kg1 {[%clk 0:01:22]}  Bf6 {[%clk 0:01:17]} 25. Rfd1 {[%clk 0:01:10]}  Rxd3 {[%clk 0:01:16]} 26. Qxd3 {[%clk 0:01:05]}  h5 {[%clk 0:01:16]} 27. f4 {[%clk 0:00:51]}  Rd8 {[%clk 0:01:07]} 28. Qe3 {[%clk 0:00:50]}  Rxd1+ {[%clk 0:00:47]} 29. Nxd1 {[%clk 0:00:46]}  Bxb2 {[%clk 0:00:47]} 30. Nxb2 {[%clk 0:00:46]}  Nh7 {[%clk 0:00:44]} 31. Nd3 {[%clk 0:00:42]}  h4 {[%clk 0:00:41]} 32. Nc5 {[%clk 0:00:28]}  hxg3 {[%clk 0:00:39]} 33. Qe2 {[%clk 0:00:26]}  Nf6 {[%clk 0:00:35]} 34. Nxb7 {[%clk 0:00:24]}  Qf5 {[%clk 0:00:35]} 35. Qe3 {[%clk 0:00:18]}  Qh3 {[%clk 0:00:34]} 36. Qxa7 {[%clk 0:00:16]}  Qh2+ {[%clk 0:00:34]} 37. Kf1 {[%clk 0:00:16]}  g2+ {[%clk 0:00:34]} 38. Ke1 {[%clk 0:00:13]}  g1=Q+ {[%clk 0:00:34]} 0-1


[Site "https://www.chess.com"]

[Event "Titled Tuesday Blitz August 1 Early 2023"]
[White "Sadykov, Ramil"]
[Black "Necromon"]
[WhiteFideId "24113590"]
[WhiteElo "2572"]
[BlackElo "2454"]
[Result "1-0"]
[Round "6"]
[TimeControl "180+1"]
[Date "2023.08.01"]
[WhiteClock "0:01:38"]
[BlackClock "0:01:14"]
[Board "112"]

1. e4 {[%clk 0:03:00]}  c5 {[%clk 0:02:59]} 2. Nf3 {[%clk 0:03:00]}  Nc6 {[%clk 0:03:00]} 3. Bb5 {[%clk 0:03:01]}  g6 {[%clk 0:02:59]} 4. Bxc6 {[%clk 0:03:01]}  dxc6 {[%clk 0:03:00]} 5. d3 {[%clk 0:03:01]}  Bg7 {[%clk 0:03:00]} 6. h3 {[%clk 0:03:02]}  Nf6 {[%clk 0:03:00]} 7. Nc3 {[%clk 0:03:02]}  O-O {[%clk 0:03:00]} 8. Be3 {[%clk 0:03:02]}  b6 {[%clk 0:03:00]} 9. Qd2 {[%clk 0:03:01]}  e5 {[%clk 0:03:00]} 10. Bh6 {[%clk 0:02:57]}  Qc7 {[%clk 0:02:58]} 11. O-O {[%clk 0:02:46]}  b5 {[%clk 0:02:42]} 12. b3 {[%clk 0:02:32]}  c4 {[%clk 0:02:40]} 13. bxc4 {[%clk 0:02:20]}  bxc4 {[%clk 0:02:41]} 14. Bxg7 {[%clk 0:02:11]}  Kxg7 {[%clk 0:02:40]} 15. d4 {[%clk 0:02:11]}  exd4 {[%clk 0:02:26]} 16. Qxd4 {[%clk 0:02:11]}  Be6 {[%clk 0:02:21]} 17. Ng5 {[%clk 0:02:09]}  Qe7 {[%clk 0:02:22]} 18. Rfd1 {[%clk 0:01:50]}  Rfd8 {[%clk 0:02:18]} 19. Qe5 {[%clk 0:01:42]}  Rxd1+ {[%clk 0:01:44]} 20. Rxd1 {[%clk 0:01:41]}  Rd8 {[%clk 0:01:44]} 21. Rxd8 {[%clk 0:01:39]}  Qxd8 {[%clk 0:01:44]} 22. Qxe6 {[%clk 0:01:39]}  Qd1+ {[%clk 0:01:14]} 23. Nxd1 {[%clk 0:01:38]} 1-0


[Site "https://www.chess.com"]

[Event "Titled Tuesday Blitz August 1 Early 2023"]
[White "Mendez Fortes, Eduardo Jesus"]
[Black "GAO"]
[WhiteFideId "3502376"]
[WhiteElo "2560"]
[BlackElo "2444"]
[Result "1-0"]
[Round "6"]
[TimeControl "180+1"]
[Date "2023.08.01"]
[WhiteClock "0:00:55"]
[BlackClock "0:00:03"]
[Board "114"]

1. e4 {[%clk 0:03:00]}  e6 {[%clk 0:02:58]} 2. d4 {[%clk 0:03:00]}  d5 {[%clk 0:02:57]} 3. Nd2 {[%clk 0:03:01]}  c5 {[%clk 0:02:56]} 4. exd5 {[%clk 0:03:01]}  Qxd5 {[%clk 0:02:55]} 5. Ngf3 {[%clk 0:03:01]}  cxd4 {[%clk 0:02:53]} 6. Bc4 {[%clk 0:03:02]}  Qd6 {[%clk 0:02:54]} 7. O-O {[%clk 0:03:03]}  Nc6 {[%clk 0:02:54]} 8. Nb3 {[%clk 0:03:04]}  Nf6 {[%clk 0:02:54]} 9. Nbxd4 {[%clk 0:03:05]}  Nxd4 {[%clk 0:02:53]} 10. Nxd4 {[%clk 0:03:05]}  a6 {[%clk 0:02:53]} 11. Re1 {[%clk 0:03:05]}  Qc7 {[%clk 0:02:53]} 12. Qe2 {[%clk 0:03:06]}  Bd6 {[%clk 0:02:45]} 13. Bg5 {[%clk 0:03:06]}  Bxh2+ {[%clk 0:02:41]} 14. Kh1 {[%clk 0:03:07]}  Bd6 {[%clk 0:02:39]} 15. Bxf6 {[%clk 0:02:57]}  gxf6 {[%clk 0:02:37]} 16. Bxe6 {[%clk 0:02:58]}  fxe6 {[%clk 0:02:17]} 17. Nxe6 {[%clk 0:02:58]}  Bxe6 {[%clk 0:02:05]} 18. Qxe6+ {[%clk 0:02:58]}  Be7 {[%clk 0:01:58]} 19. Re3 {[%clk 0:02:48]}  Rf8 {[%clk 0:01:39]} 20. Rae1 {[%clk 0:02:45]}  Rf7 {[%clk 0:01:39]} 21. Rg3 {[%clk 0:02:45]}  Kf8 {[%clk 0:01:30]} 22. Qg4 {[%clk 0:02:44]}  Ke8 {[%clk 0:01:19]} 23. Qg8+ {[%clk 0:02:40]}  Rf8 {[%clk 0:01:18]} 24. Qxh7 {[%clk 0:02:40]}  Rd8 {[%clk 0:01:00]} 25. Qh5+ {[%clk 0:02:10]}  Kd7 {[%clk 0:00:54]} 26. Rd3+ {[%clk 0:01:54]}  Kc8 {[%clk 0:00:49]} 27. Rc3 {[%clk 0:01:42]}  Qxc3 {[%clk 0:00:31]} 28. Qf5+ {[%clk 0:01:41]}  Kb8 {[%clk 0:00:28]} 29. bxc3 {[%clk 0:01:37]}  Bd6 {[%clk 0:00:23]} 30. g3 {[%clk 0:01:35]}  Rc8 {[%clk 0:00:20]} 31. Re6 {[%clk 0:01:32]}  Be5 {[%clk 0:00:20]} 32. c4 {[%clk 0:01:30]}  Rh8+ {[%clk 0:00:12]} 33. Kg2 {[%clk 0:01:29]}  Rhd8 {[%clk 0:00:08]} 34. Re7 {[%clk 0:01:19]}  Rxc4 {[%clk 0:00:07]} 35. a3 {[%clk 0:01:18]}  Rdc8 {[%clk 0:00:06]} 36. Qf3 {[%clk 0:01:16]}  R8c7 {[%clk 0:00:04]} 37. Rxc7 {[%clk 0:01:15]}  Kxc7 {[%clk 0:00:05]} 38. Qb3 {[%clk 0:01:15]}  Rc3 {[%clk 0:00:05]} 39. Qa4 {[%clk 0:01:15]}  Bd6 {[%clk 0:00:01]} 40. f4 {[%clk 0:01:12]}  Rc6 {[%clk 0:00:01]} 41. Kf3 {[%clk 0:01:10]}  Rc3+ {[%clk 0:00:01]} 42. Kg4 {[%clk 0:01:10]}  Rxa3 {[%clk 0:00:02]} 43. Qc4+ {[%clk 0:01:10]}  Kd7 {[%clk 0:00:02]} 44. Kf5 {[%clk 0:01:09]}  Rxg3 {[%clk 0:00:02]} 45. Qe6+ {[%clk 0:01:09]}  Kc7 {[%clk 0:00:03]} 46. Kxf6 {[%clk 0:01:06]}  Rc3 {[%clk 0:00:03]} 47. Qe4 {[%clk 0:01:02]}  Rc6 {[%clk 0:00:04]} 48. Kf7 {[%clk 0:01:01]}  a5 {[%clk 0:00:04]} 49. f5 {[%clk 0:01:01]}  Ra6 {[%clk 0:00:04]} 50. Qa4 {[%clk 0:01:00]}  b5 {[%clk 0:00:02]} 51. Qxb5 {[%clk 0:01:00]}  Ra7 {[%clk 0:00:02]} 52. Ke6 {[%clk 0:01:00]}  a4 {[%clk 0:00:02]} 53. Qc4+ {[%clk 0:01:00]}  Kb8 {[%clk 0:00:01]} 54. Kxd6 {[%clk 0:01:00]}  a3 {[%clk 0:00:01]} 55. Qb3+ {[%clk 0:00:59]}  Ka8 {[%clk 0:00:02]} 56. f6 {[%clk 0:00:58]}  Ra6+ {[%clk 0:00:03]} 57. Kc7 {[%clk 0:00:56]}  a2 {[%clk 0:00:03]} 58. Qb7# {[%clk 0:00:55]} 1-0


[Site "https://www.chess.com"]

[Event "Titled Tuesday Blitz August 1 Early 2023"]
[White "Bogaudinov, Rushan"]
[Black "Chor, Kevin"]
[WhiteFideId "4129288"]
[BlackFideId "2090740"]
[WhiteElo "2427"]
[BlackElo "2545"]
[Result "1-0"]
[Round "6"]
[TimeControl "180+1"]
[Date "2023.08.01"]
[WhiteClock "0:00:48"]
[BlackClock "0:00:00"]
[Board "117"]

1. d4 {[%clk 0:02:37]}  Nf6 {[%clk 0:02:59]} 2. Nf3 {[%clk 0:02:37]}  g6 {[%clk 0:02:59]} 3. e3 {[%clk 0:02:37]}  Bg7 {[%clk 0:02:59]} 4. Be2 {[%clk 0:02:38]}  O-O {[%clk 0:02:58]} 5. O-O {[%clk 0:02:39]}  d6 {[%clk 0:02:59]} 6. c4 {[%clk 0:02:40]}  Nbd7 {[%clk 0:02:59]} 7. Nc3 {[%clk 0:02:40]}  b6 {[%clk 0:03:00]} 8. b4 {[%clk 0:02:40]}  Bb7 {[%clk 0:02:58]} 9. a4 {[%clk 0:02:39]}  a5 {[%clk 0:02:54]} 10. b5 {[%clk 0:02:38]}  Ne4 {[%clk 0:02:42]} 11. Nxe4 {[%clk 0:02:36]}  Bxe4 {[%clk 0:02:43]} 12. Nd2 {[%clk 0:02:36]}  Bb7 {[%clk 0:02:41]} 13. Bf3 {[%clk 0:02:30]}  Bxf3 {[%clk 0:02:37]} 14. Qxf3 {[%clk 0:02:30]}  e5 {[%clk 0:02:38]} 15. Bb2 {[%clk 0:02:30]}  f5 {[%clk 0:02:29]} 16. Qc6 {[%clk 0:02:16]}  Rc8 {[%clk 0:02:17]} 17. Nb3 {[%clk 0:02:14]}  Qe7 {[%clk 0:02:09]} 18. Rac1 {[%clk 0:02:04]}  f4 {[%clk 0:02:05]} 19. exf4 {[%clk 0:01:56]}  Rxf4 {[%clk 0:01:55]} 20. g3 {[%clk 0:01:49]}  Rf7 {[%clk 0:01:46]} 21. c5 {[%clk 0:01:48]}  dxc5 {[%clk 0:01:36]} 22. dxc5 {[%clk 0:01:46]}  Rff8 {[%clk 0:01:21]} 23. Rcd1 {[%clk 0:01:35]}  Nxc5 {[%clk 0:01:11]} 24. Ba3 {[%clk 0:01:20]}  Qg5 {[%clk 0:00:53]} 25. Bxc5 {[%clk 0:01:12]}  bxc5 {[%clk 0:00:53]} 26. Nxc5 {[%clk 0:01:12]}  Rf7 {[%clk 0:00:30]} 27. Rd7 {[%clk 0:00:58]}  Qf5 {[%clk 0:00:15]} 28. Rxf7 {[%clk 0:00:55]}  Qxf7 {[%clk 0:00:16]} 29. b6 {[%clk 0:00:52]}  Re8 {[%clk 0:00:00]} 30. b7 {[%clk 0:00:48]} 1-0


[Site "https://www.chess.com"]

[Event "Titled Tuesday Blitz August 1 Early 2023"]
[White "Vlassov, Nikolai"]
[Black "Bouget, Alexandre"]
[WhiteFideId "4103360"]
[BlackFideId "681318"]
[WhiteElo "2541"]
[BlackElo "2421"]
[Result "1-0"]
[Round "6"]
[TimeControl "180+1"]
[Date "2023.08.01"]
[WhiteClock "0:01:06"]
[BlackClock "0:00:11"]
[Board "118"]

1. e4 {[%clk 0:03:00]}  g6 {[%clk 0:02:54]} 2. Nc3 {[%clk 0:02:59]}  Bg7 {[%clk 0:02:54]} 3. h4 {[%clk 0:02:59]}  d6 {[%clk 0:02:54]} 4. h5 {[%clk 0:02:59]}  c5 {[%clk 0:02:51]} 5. Bc4 {[%clk 0:02:54]}  Nc6 {[%clk 0:02:49]} 6. d3 {[%clk 0:02:54]}  a6 {[%clk 0:02:49]} 7. h6 {[%clk 0:02:54]}  Bf6 {[%clk 0:02:31]} 8. a4 {[%clk 0:02:40]}  e6 {[%clk 0:02:29]} 9. Nh3 {[%clk 0:02:34]}  Nge7 {[%clk 0:02:28]} 10. Nf4 {[%clk 0:02:28]}  O-O {[%clk 0:02:22]} 11. Bd2 {[%clk 0:02:23]}  b6 {[%clk 0:02:05]} 12. Qc1 {[%clk 0:02:17]}  Rb8 {[%clk 0:02:01]} 13. Nce2 {[%clk 0:02:15]}  b5 {[%clk 0:01:59]} 14. Bb3 {[%clk 0:02:12]}  d5 {[%clk 0:01:54]} 15. axb5 {[%clk 0:02:03]}  axb5 {[%clk 0:01:53]} 16. O-O {[%clk 0:02:00]}  c4 {[%clk 0:01:51]} 17. Ba2 {[%clk 0:02:00]}  e5 {[%clk 0:01:41]} 18. Nxd5 {[%clk 0:01:57]}  Nxd5 {[%clk 0:01:42]} 19. exd5 {[%clk 0:01:56]}  Qxd5 {[%clk 0:01:41]} 20. Nc3 {[%clk 0:01:55]}  Qe6 {[%clk 0:01:39]} 21. Ne4 {[%clk 0:01:48]}  Be7 {[%clk 0:01:35]} 22. dxc4 {[%clk 0:01:43]}  bxc4 {[%clk 0:01:34]} 23. Bc3 {[%clk 0:01:43]}  Nd4 {[%clk 0:01:27]} 24. Re1 {[%clk 0:01:37]}  Bb7 {[%clk 0:01:23]} 25. Bxd4 {[%clk 0:01:29]}  exd4 {[%clk 0:01:24]} 26. Qf4 {[%clk 0:01:29]}  Qc6 {[%clk 0:01:18]} 27. f3 {[%clk 0:01:27]}  f5 {[%clk 0:01:12]} 28. Nd2 {[%clk 0:01:25]}  Bd6 {[%clk 0:01:07]} 29. Bxc4+ {[%clk 0:01:17]}  Qxc4 {[%clk 0:00:55]} 30. Qxd6 {[%clk 0:01:17]}  Qd5 {[%clk 0:00:45]} 31. Qc7 {[%clk 0:01:07]}  Qf7 {[%clk 0:00:22]} 32. Re7 {[%clk 0:01:06]}  Rfc8 {[%clk 0:00:14]} 33. Rxf7 {[%clk 0:01:06]}  Rxc7 {[%clk 0:00:11]} 34. Rxc7 {[%clk 0:01:06]} 1-0


[Site "https://www.chess.com"]

[Event "Titled Tuesday Blitz August 1 Early 2023"]
[White "Al-Tarboush, Ward"]
[Black "Fisabilillah, Ummi"]
[WhiteFideId "7601450"]
[BlackFideId "7104804"]
[WhiteElo "2537"]
[BlackElo "2405"]
[Result "0-1"]
[Round "6"]
[TimeControl "180+1"]
[Date "2023.08.01"]
[WhiteClock "0:00:00"]
[BlackClock "0:00:28"]
[Board "121"]

1. e4 {[%clk 0:03:00]}  d5 {[%clk 0:02:59]} 2. exd5 {[%clk 0:03:00]}  Qxd5 {[%clk 0:03:00]} 3. Nc3 {[%clk 0:03:01]}  Qa5 {[%clk 0:03:00]} 4. d4 {[%clk 0:03:00]}  c6 {[%clk 0:03:00]} 5. Nf3 {[%clk 0:03:01]}  Nf6 {[%clk 0:03:01]} 6. Bc4 {[%clk 0:03:01]}  Bf5 {[%clk 0:03:02]} 7. Bd2 {[%clk 0:03:01]}  e6 {[%clk 0:03:01]} 8. Nd5 {[%clk 0:03:01]}  Qd8 {[%clk 0:03:00]} 9. Nxf6+ {[%clk 0:03:01]}  Qxf6 {[%clk 0:03:00]} 10. h4 {[%clk 0:02:32]}  Bg4 {[%clk 0:02:55]} 11. Bg5 {[%clk 0:02:30]}  Bxf3 {[%clk 0:02:35]} 12. gxf3 {[%clk 0:02:28]}  Qf5 {[%clk 0:02:36]} 13. Qe2 {[%clk 0:02:28]}  Nd7 {[%clk 0:02:30]} 14. O-O-O {[%clk 0:02:27]}  Nb6 {[%clk 0:02:22]} 15. Bb3 {[%clk 0:02:24]}  h6 {[%clk 0:02:20]} 16. Bd2 {[%clk 0:02:21]}  O-O-O {[%clk 0:02:20]} 17. c3 {[%clk 0:02:17]}  Bd6 {[%clk 0:02:18]} 18. Rhg1 {[%clk 0:02:16]}  Qf6 {[%clk 0:02:17]} 19. Qe4 {[%clk 0:02:14]}  g6 {[%clk 0:02:11]} 20. c4 {[%clk 0:02:04]}  Be7 {[%clk 0:02:01]} 21. Bf4 {[%clk 0:02:00]}  Qxh4 {[%clk 0:01:45]} 22. Rh1 {[%clk 0:01:55]}  Qxf4+ {[%clk 0:01:44]} 23. Qxf4 {[%clk 0:01:54]}  Bg5 {[%clk 0:01:44]} 24. Qe3 {[%clk 0:01:52]}  Bxe3+ {[%clk 0:01:43]} 25. fxe3 {[%clk 0:01:53]}  h5 {[%clk 0:01:42]} 26. e4 {[%clk 0:01:47]}  Rd7 {[%clk 0:01:38]} 27. c5 {[%clk 0:01:47]}  Na8 {[%clk 0:01:33]} 28. Kc2 {[%clk 0:01:29]}  Nc7 {[%clk 0:01:30]} 29. Bc4 {[%clk 0:01:26]}  Rhd8 {[%clk 0:01:30]} 30. Kc3 {[%clk 0:01:26]}  e5 {[%clk 0:01:27]} 31. b4 {[%clk 0:00:42]}  exd4+ {[%clk 0:01:15]} 32. Kd3 {[%clk 0:00:42]}  Re7 {[%clk 0:01:00]} 33. f4 {[%clk 0:00:24]}  Ne6 {[%clk 0:00:59]} 34. Bxe6+ {[%clk 0:00:24]}  Rxe6 {[%clk 0:01:00]} 35. e5 {[%clk 0:00:25]}  f6 {[%clk 0:01:00]} 36. Rde1 {[%clk 0:00:19]}  fxe5 {[%clk 0:00:59]} 37. Rxe5 {[%clk 0:00:18]}  Rf6 {[%clk 0:00:59]} 38. Rg1 {[%clk 0:00:14]}  Rxf4 {[%clk 0:00:54]} 39. Rxg6 {[%clk 0:00:14]}  Rf3+ {[%clk 0:00:55]} 40. Kd2 {[%clk 0:00:14]}  d3 {[%clk 0:00:52]} 41. Re7 {[%clk 0:00:14]}  Rf2+ {[%clk 0:00:50]} 42. Kc3 {[%clk 0:00:12]}  d2 {[%clk 0:00:31]} 43. Rgg7 {[%clk 0:00:11]}  Rd3+ {[%clk 0:00:28]} 44. Kc4 {[%clk 0:00:00]}  d1=Q {[%clk 0:00:28]} 0-1


[Site "https://www.chess.com"]

[Event "Titled Tuesday Blitz August 1 Early 2023"]
[White "Thecourseoisildur"]
[Black "jimmy-schlumpf"]
[WhiteElo "2535"]
[BlackElo "2403"]
[Result "1-0"]
[Round "6"]
[TimeControl "180+1"]
[Date "2023.08.01"]
[WhiteClock "0:01:20"]
[BlackClock "0:00:20"]
[Board "122"]

1. d4 {[%clk 0:03:00]}  Nf6 {[%clk 0:02:58]} 2. c4 {[%clk 0:03:01]}  g6 {[%clk 0:02:59]} 3. Nc3 {[%clk 0:03:00]}  d5 {[%clk 0:02:59]} 4. cxd5 {[%clk 0:03:01]}  Nxd5 {[%clk 0:02:57]} 5. e4 {[%clk 0:03:01]}  Nxc3 {[%clk 0:02:58]} 6. bxc3 {[%clk 0:03:02]}  Bg7 {[%clk 0:02:58]} 7. Nf3 {[%clk 0:03:01]}  c5 {[%clk 0:02:57]} 8. h3 {[%clk 0:03:00]}  O-O {[%clk 0:02:56]} 9. Be2 {[%clk 0:03:00]}  b6 {[%clk 0:02:56]} 10. O-O {[%clk 0:02:57]}  Bb7 {[%clk 0:02:56]} 11. Qd3 {[%clk 0:02:56]}  Ba6 {[%clk 0:02:56]} 12. Qe3 {[%clk 0:02:51]}  Bxe2 {[%clk 0:02:56]} 13. Qxe2 {[%clk 0:02:52]}  e6 {[%clk 0:02:56]} 14. Bg5 {[%clk 0:02:49]}  Qc7 {[%clk 0:02:53]} 15. Qd2 {[%clk 0:02:48]}  Nd7 {[%clk 0:02:38]} 16. e5 {[%clk 0:02:26]}  Rfe8 {[%clk 0:02:26]} 17. Bh6 {[%clk 0:02:22]}  cxd4 {[%clk 0:02:20]} 18. cxd4 {[%clk 0:02:21]}  Rac8 {[%clk 0:02:19]} 19. Qf4 {[%clk 0:02:17]}  Qc2 {[%clk 0:02:05]} 20. g4 {[%clk 0:01:46]}  Rc3 {[%clk 0:01:37]} 21. Ng5 {[%clk 0:01:42]}  f6 {[%clk 0:01:31]} 22. exf6 {[%clk 0:01:37]}  Nxf6 {[%clk 0:01:27]} 23. Bxg7 {[%clk 0:01:33]}  Kxg7 {[%clk 0:01:26]} 24. Qe5 {[%clk 0:01:28]}  Rc6 {[%clk 0:00:37]} 25. Nxh7 {[%clk 0:01:21]}  Kxh7 {[%clk 0:00:34]} 26. Qxf6 {[%clk 0:01:21]}  Qd3 {[%clk 0:00:20]} 27. Qf7+ {[%clk 0:01:20]} 1-0


[Site "https://www.chess.com"]

[Event "Titled Tuesday Blitz August 1 Early 2023"]
[White "Toropov, Pavel"]
[Black "Stork, Oliver"]
[WhiteFideId "24129178"]
[BlackFideId "12955728"]
[WhiteElo "2532"]
[BlackElo "2399"]
[Result "1/2-1/2"]
[Round "6"]
[TimeControl "180+1"]
[Date "2023.08.01"]
[WhiteClock "0:00:23"]
[BlackClock "0:00:11"]
[Board "124"]

1. e4 {[%clk 0:02:57]}  c5 {[%clk 0:02:59]} 2. Nf3 {[%clk 0:02:56]}  e6 {[%clk 0:03:00]} 3. d4 {[%clk 0:02:57]}  cxd4 {[%clk 0:03:00]} 4. Nxd4 {[%clk 0:02:58]}  Nf6 {[%clk 0:03:01]} 5. Nc3 {[%clk 0:02:58]}  Nc6 {[%clk 0:03:02]} 6. Be3 {[%clk 0:02:55]}  Bb4 {[%clk 0:02:59]} 7. Bd3 {[%clk 0:02:49]}  d5 {[%clk 0:02:57]} 8. exd5 {[%clk 0:02:46]}  Nxd5 {[%clk 0:02:54]} 9. Nxc6 {[%clk 0:02:46]}  bxc6 {[%clk 0:02:50]} 10. Bd2 {[%clk 0:02:46]}  Nxc3 {[%clk 0:02:48]} 11. bxc3 {[%clk 0:02:47]}  Ba5 {[%clk 0:02:40]} 12. O-O {[%clk 0:02:42]}  O-O {[%clk 0:02:31]} 13. Rb1 {[%clk 0:02:39]}  e5 {[%clk 0:02:23]} 14. Qh5 {[%clk 0:02:27]}  f5 {[%clk 0:02:23]} 15. Bc4+ {[%clk 0:01:54]}  Kh8 {[%clk 0:02:23]} 16. Rfd1 {[%clk 0:01:51]}  Qe8 {[%clk 0:02:16]} 17. Qxe8 {[%clk 0:01:42]}  Rxe8 {[%clk 0:02:16]} 18. Be3 {[%clk 0:01:09]}  Bxc3 {[%clk 0:00:36]} 19. Rb3 {[%clk 0:01:03]}  Bd4 {[%clk 0:00:36]} 20. Bxd4 {[%clk 0:01:02]}  exd4 {[%clk 0:00:37]} 21. f3 {[%clk 0:00:51]}  Be6 {[%clk 0:00:26]} 22. Bxe6 {[%clk 0:00:38]}  Rxe6 {[%clk 0:00:27]} 23. Rxd4 {[%clk 0:00:39]}  Re2 {[%clk 0:00:27]} 24. Rc3 {[%clk 0:00:38]}  Re6 {[%clk 0:00:03]} 25. Rdc4 {[%clk 0:00:34]}  Rc8 {[%clk 0:00:03]} 26. Ra4 {[%clk 0:00:34]}  Rc7 {[%clk 0:00:04]} 27. Kf2 {[%clk 0:00:34]}  g6 {[%clk 0:00:04]} 28. Rac4 {[%clk 0:00:27]}  Kg7 {[%clk 0:00:03]} 29. Re3 {[%clk 0:00:23]}  Kf6 {[%clk 0:00:03]} 30. Rxe6+ {[%clk 0:00:24]}  Kxe6 {[%clk 0:00:04]} 31. Ke3 {[%clk 0:00:24]}  Kd5 {[%clk 0:00:05]} 32. Ra4 {[%clk 0:00:23]}  c5 {[%clk 0:00:04]} 33. Kf4 {[%clk 0:00:23]}  c4 {[%clk 0:00:02]} 34. c3 {[%clk 0:00:23]}  Re7 {[%clk 0:00:01]} 35. Ra5+ {[%clk 0:00:24]}  Kc6 {[%clk 0:00:02]} 36. h4 {[%clk 0:00:22]}  Kb6 {[%clk 0:00:02]} 37. Re5 {[%clk 0:00:20]}  Rd7 {[%clk 0:00:01]} 38. Re8 {[%clk 0:00:17]}  Rd3 {[%clk 0:00:01]} 39. Rb8+ {[%clk 0:00:17]}  Kc7 {[%clk 0:00:01]} 40. Ra8 {[%clk 0:00:17]}  Kb7 {[%clk 0:00:02]} 41. Rh8 {[%clk 0:00:18]}  Rxc3 {[%clk 0:00:02]} 42. Rxh7+ {[%clk 0:00:19]}  Kb6 {[%clk 0:00:03]} 43. Rg7 {[%clk 0:00:19]}  Rc2 {[%clk 0:00:04]} 44. Rxg6+ {[%clk 0:00:20]}  Kb5 {[%clk 0:00:04]} 45. h5 {[%clk 0:00:20]}  c3 {[%clk 0:00:03]} 46. h6 {[%clk 0:00:21]}  Rc1 {[%clk 0:00:03]} 47. Rg8 {[%clk 0:00:21]}  Rh1 {[%clk 0:00:03]} 48. Rb8+ {[%clk 0:00:21]}  Kc4 {[%clk 0:00:03]} 49. Rc8+ {[%clk 0:00:22]}  Kd3 {[%clk 0:00:03]} 50. Kg5 {[%clk 0:00:20]}  c2 {[%clk 0:00:03]} 51. g4 {[%clk 0:00:20]}  fxg4 {[%clk 0:00:02]} 52. fxg4 {[%clk 0:00:21]}  Kd2 {[%clk 0:00:02]} 53. Kg6 {[%clk 0:00:20]}  c1=Q {[%clk 0:00:02]} 54. Rxc1 {[%clk 0:00:20]}  Kxc1 {[%clk 0:00:03]} 55. h7 {[%clk 0:00:20]}  Kb2 {[%clk 0:00:04]} 56. g5 {[%clk 0:00:20]}  Kxa2 {[%clk 0:00:04]} 57. Kg7 {[%clk 0:00:21]}  Kb1 {[%clk 0:00:03]} 58. h8=Q {[%clk 0:00:20]}  Rxh8 {[%clk 0:00:03]} 59. Kxh8 {[%clk 0:00:21]}  a5 {[%clk 0:00:04]} 60. g6 {[%clk 0:00:22]}  a4 {[%clk 0:00:04]} 61. g7 {[%clk 0:00:23]}  a3 {[%clk 0:00:05]} 62. g8=Q {[%clk 0:00:23]}  a2 {[%clk 0:00:06]} 63. Qb3+ {[%clk 0:00:23]}  Ka1 {[%clk 0:00:07]} 64. Qc3+ {[%clk 0:00:23]}  Kb1 {[%clk 0:00:07]} 65. Qe1+ {[%clk 0:00:23]}  Kb2 {[%clk 0:00:07]} 66. Qe2+ {[%clk 0:00:24]}  Kb1 {[%clk 0:00:08]} 67. Qd1+ {[%clk 0:00:24]}  Kb2 {[%clk 0:00:08]} 68. Qd2+ {[%clk 0:00:24]}  Kb1 {[%clk 0:00:09]} 69. Qb4+ {[%clk 0:00:25]}  Ka1 {[%clk 0:00:09]} 70. Qa3 {[%clk 0:00:24]}  Kb1 {[%clk 0:00:09]} 71. Qb3+ {[%clk 0:00:25]}  Ka1 {[%clk 0:00:09]} 72. Qc3+ {[%clk 0:00:25]}  Kb1 {[%clk 0:00:10]} 73. Kh7 {[%clk 0:00:24]}  a1=Q {[%clk 0:00:10]} 74. Qe1+ {[%clk 0:00:24]}  Ka2 {[%clk 0:00:10]} 75. Qa5+ {[%clk 0:00:24]}  Kb1 {[%clk 0:00:10]} 76. Qb5+ {[%clk 0:00:24]}  Qb2 {[%clk 0:00:10]} 77. Qf1+ {[%clk 0:00:25]}  Qc1 {[%clk 0:00:10]} 78. Qa6 {[%clk 0:00:24]}  Qc2+ {[%clk 0:00:09]} 79. Kg7 {[%clk 0:00:24]}  Qb2+ {[%clk 0:00:10]} 80. Kf7 {[%clk 0:00:23]}  Qa2+ {[%clk 0:00:10]} 81. Qxa2+ {[%clk 0:00:23]}  Kxa2 {[%clk 0:00:11]} 1/2-1/2


[Site "https://www.chess.com"]